[Event "Titled Tuesday Blitz June 13 Early 2023"]
[White "Mamedov, Edgar"]
[Black "Slayyy_200"]
[WhiteFideId "13739980"]
[WhiteElo "2317"]
[BlackElo "2060"]
[Result "1-0"]
[Round "1"]
[TimeControl "180+2"]
[Date "2023.06.13"]
[WhiteClock "0:00:30"]
[BlackClock "0:00:13"]
[Board "220"]

1. d4 {[%clk 0:02:59]}  Nf6 {[%clk 0:02:55]} 2. Bg5 {[%clk 0:02:58]}  Ne4 {[%clk 0:02:53]} 3. Bf4 {[%clk 0:02:58]}  c5 {[%clk 0:02:52]} 4. f3 {[%clk 0:02:57]}  Nf6 {[%clk 0:02:46]} 5. dxc5 {[%clk 0:02:57]}  Nc6 {[%clk 0:02:40]} 6. Nc3 {[%clk 0:02:56]}  e5 {[%clk 0:02:39]} 7. Be3 {[%clk 0:02:53]}  Qa5 {[%clk 0:02:31]} 8. a3 {[%clk 0:02:32]}  Bxc5 {[%clk 0:01:56]} 9. b4 {[%clk 0:02:31]}  Nxb4 {[%clk 0:01:47]} 10. axb4 {[%clk 0:02:30]}  Qxb4 {[%clk 0:01:47]} 11. Bd2 {[%clk 0:02:29]}  Qb6 {[%clk 0:01:37]} 12. e3 {[%clk 0:02:19]}  Bxe3 {[%clk 0:01:34]} 13. Bxe3 {[%clk 0:02:19]}  Qxe3+ {[%clk 0:01:33]} 14. Nge2 {[%clk 0:02:19]}  O-O {[%clk 0:01:28]} 15. Qd2 {[%clk 0:02:16]}  Qb6 {[%clk 0:01:27]} 16. Rb1 {[%clk 0:01:56]}  Qc7 {[%clk 0:01:26]} 17. g3 {[%clk 0:01:48]}  Rd8 {[%clk 0:01:21]} 18. Nb5 {[%clk 0:01:42]}  Qb6 {[%clk 0:01:12]} 19. Qd6 {[%clk 0:01:34]}  Qe3 {[%clk 0:01:08]} 20. Rb3 {[%clk 0:01:34]}  Qh6 {[%clk 0:01:02]} 21. Nc7 {[%clk 0:01:30]}  Rb8 {[%clk 0:00:56]} 22. Qe7 {[%clk 0:01:28]}  Rf8 {[%clk 0:00:52]} 23. Qxe5 {[%clk 0:01:24]}  b6 {[%clk 0:00:48]} 24. Ne6 {[%clk 0:01:10]}  d6 {[%clk 0:00:46]} 25. Qxd6 {[%clk 0:00:46]}  Bxe6 {[%clk 0:00:45]} 26. Rd3 {[%clk 0:00:46]}  Qc1+ {[%clk 0:00:40]} 27. Nxc1 {[%clk 0:00:45]}  Bc4 {[%clk 0:00:32]} 28. Rd4 {[%clk 0:00:42]}  Rfe8+ {[%clk 0:00:28]} 29. Kf2 {[%clk 0:00:41]}  Be6 {[%clk 0:00:27]} 30. Bb5 {[%clk 0:00:40]}  Rec8 {[%clk 0:00:25]} 31. Bd3 {[%clk 0:00:34]}  a5 {[%clk 0:00:20]} 32. Ne2 {[%clk 0:00:33]}  b5 {[%clk 0:00:19]} 33. Nf4 {[%clk 0:00:33]}  Bc4 {[%clk 0:00:18]} 34. Bxc4 {[%clk 0:00:32]}  bxc4 {[%clk 0:00:19]} 35. Rhd1 {[%clk 0:00:32]}  h6 {[%clk 0:00:17]} 36. Nd5 {[%clk 0:00:31]}  Nxd5 {[%clk 0:00:14]} 37. Qxd5 {[%clk 0:00:31]}  a4 {[%clk 0:00:15]} 38. Rxc4 {[%clk 0:00:31]}  a3 {[%clk 0:00:15]} 39. Rxc8+ {[%clk 0:00:30]}  Rxc8 {[%clk 0:00:16]} 40. Qa2 {[%clk 0:00:30]}  Rc3 {[%clk 0:00:15]} 41. Rd3 {[%clk 0:00:29]}  Rxd3 {[%clk 0:00:13]} 42. cxd3 {[%clk 0:00:30]} 1-0


[Site "https://www.chess.com"]

[Event "Titled Tuesday Blitz June 13 Early 2023"]
[White "Toncheva, Nadya"]
[Black "Kriti Mayur Patel"]
[WhiteFideId "2924056"]
[BlackFideId "35061780"]
[WhiteElo "2101"]
[BlackElo "1306"]
[Result "0-1"]
[Round "1"]
[TimeControl "180+2"]
[Date "2023.06.13"]
[WhiteClock "0:00:09"]
[BlackClock "0:00:36"]
[Board "222"]

1. e4 {[%clk 0:02:58]}  e5 {[%clk 0:03:00]} 2. Nf3 {[%clk 0:02:58]}  Nc6 {[%clk 0:03:00]} 3. Bb5 {[%clk 0:02:59]}  a6 {[%clk 0:03:00]} 4. Ba4 {[%clk 0:02:59]}  Nf6 {[%clk 0:03:01]} 5. O-O {[%clk 0:02:59]}  b5 {[%clk 0:03:01]} 6. Bb3 {[%clk 0:02:59]}  Bc5 {[%clk 0:03:02]} 7. Re1 {[%clk 0:02:58]}  d6 {[%clk 0:02:57]} 8. c3 {[%clk 0:02:58]}  Bb6 {[%clk 0:02:55]} 9. d4 {[%clk 0:02:57]}  O-O {[%clk 0:02:55]} 10. Bg5 {[%clk 0:02:56]}  Bg4 {[%clk 0:02:55]} 11. d5 {[%clk 0:02:46]}  Ne7 {[%clk 0:02:48]} 12. Bxf6 {[%clk 0:02:45]}  gxf6 {[%clk 0:02:49]} 13. h3 {[%clk 0:02:41]}  Bh5 {[%clk 0:02:47]} 14. g4 {[%clk 0:02:38]}  Bg6 {[%clk 0:02:46]} 15. Nbd2 {[%clk 0:02:36]}  Kh8 {[%clk 0:02:43]} 16. Kg2 {[%clk 0:02:35]}  Rg8 {[%clk 0:02:43]} 17. Nh2 {[%clk 0:02:25]}  Qf8 {[%clk 0:02:23]} 18. Kf1 {[%clk 0:02:14]}  Qh6 {[%clk 0:02:21]} 19. Qf3 {[%clk 0:01:35]}  Qxd2 {[%clk 0:02:15]} 20. Qxf6+ {[%clk 0:01:35]}  Rg7 {[%clk 0:02:14]} 21. Re2 {[%clk 0:01:20]}  Qf4 {[%clk 0:02:08]} 22. Qxf4 {[%clk 0:00:57]}  exf4 {[%clk 0:02:09]} 23. f3 {[%clk 0:00:57]}  Re8 {[%clk 0:02:07]} 24. a4 {[%clk 0:00:56]}  Rgg8 {[%clk 0:02:01]} 25. axb5 {[%clk 0:00:56]}  axb5 {[%clk 0:01:59]} 26. Ke1 {[%clk 0:00:53]}  Ra8 {[%clk 0:01:54]} 27. Rd1 {[%clk 0:00:53]}  Rge8 {[%clk 0:01:51]} 28. Nf1 {[%clk 0:00:52]}  h5 {[%clk 0:01:45]} 29. Kd2 {[%clk 0:00:52]}  hxg4 {[%clk 0:01:28]} 30. hxg4 {[%clk 0:00:53]}  Kg7 {[%clk 0:01:28]} 31. Kc2 {[%clk 0:00:42]}  Bc5 {[%clk 0:01:23]} 32. Nd2 {[%clk 0:00:42]}  b4 {[%clk 0:01:23]} 33. Nc4 {[%clk 0:00:41]}  bxc3 {[%clk 0:01:22]} 34. Kxc3 {[%clk 0:00:41]}  Reb8 {[%clk 0:01:20]} 35. Kc2 {[%clk 0:00:35]}  Rb4 {[%clk 0:01:17]} 36. Nd2 {[%clk 0:00:33]}  Rab8 {[%clk 0:01:14]} 37. Ra1 {[%clk 0:00:32]}  Be3 {[%clk 0:01:12]} 38. Ra3 {[%clk 0:00:30]}  c6 {[%clk 0:01:07]} 39. dxc6 {[%clk 0:00:23]}  Nxc6 {[%clk 0:01:07]} 40. Kc3 {[%clk 0:00:15]}  Bd4+ {[%clk 0:01:03]} 41. Kc2 {[%clk 0:00:15]}  Be5 {[%clk 0:00:57]} 42. Nc4 {[%clk 0:00:14]}  Nd4+ {[%clk 0:00:56]} 43. Kd1 {[%clk 0:00:14]}  Rxb3 {[%clk 0:00:54]} 44. Ra7 {[%clk 0:00:09]}  Nxe2 {[%clk 0:00:52]} 45. Kxe2 {[%clk 0:00:10]}  R3b7 {[%clk 0:00:51]} 46. Ra5 {[%clk 0:00:09]}  Bxb2 {[%clk 0:00:50]} 47. Nxd6 {[%clk 0:00:09]}  Rd7 {[%clk 0:00:47]} 48. Nc4 {[%clk 0:00:08]}  Bc3 {[%clk 0:00:44]} 49. Ra6 {[%clk 0:00:08]}  Rbd8 {[%clk 0:00:43]} 50. e5 {[%clk 0:00:08]}  Rd5 {[%clk 0:00:41]} 51. Kf2 {[%clk 0:00:08]}  Bxe5 {[%clk 0:00:41]} 52. Ra7 {[%clk 0:00:07]}  Bd4+ {[%clk 0:00:39]} 53. Kg2 {[%clk 0:00:07]}  Bxa7 {[%clk 0:00:40]} 54. Kh3 {[%clk 0:00:08]}  Rd4 {[%clk 0:00:40]} 55. g5 {[%clk 0:00:07]}  Rxc4 {[%clk 0:00:40]} 56. Kg4 {[%clk 0:00:08]}  Rd1 {[%clk 0:00:37]} 57. Kh3 {[%clk 0:00:08]}  Rc3 {[%clk 0:00:36]} 58. Kg4 {[%clk 0:00:08]}  Rg1+ {[%clk 0:00:37]} 59. Kxf4 {[%clk 0:00:09]}  Bb8# {[%clk 0:00:36]} 0-1


[Site "https://www.chess.com"]

[Event "Titled Tuesday Blitz June 13 Early 2023"]
[White "Jaskolka, Tomasz"]
[Black "Porat, Tori"]
[WhiteFideId "1170791"]
[BlackFideId "30982626"]
[WhiteElo "2155"]
[BlackElo "1752"]
[Result "1-0"]
[Round "1"]
[TimeControl "180+2"]
[Date "2023.06.13"]
[WhiteClock "0:00:41"]
[BlackClock "0:00:25"]
[Board "226"]

1. d4 {[%clk 0:02:59]}  d5 {[%clk 0:02:58]} 2. Nc3 {[%clk 0:02:59]}  Nf6 {[%clk 0:02:57]} 3. Bf4 {[%clk 0:02:59]}  e6 {[%clk 0:02:52]} 4. Nb5 {[%clk 0:02:56]}  Na6 {[%clk 0:02:45]} 5. e3 {[%clk 0:02:55]}  c6 {[%clk 0:02:39]} 6. Nc3 {[%clk 0:02:55]}  Nc7 {[%clk 0:02:32]} 7. Nf3 {[%clk 0:02:55]}  Bb4 {[%clk 0:02:28]} 8. Bd3 {[%clk 0:02:40]}  O-O {[%clk 0:02:20]} 9. O-O {[%clk 0:02:36]}  Re8 {[%clk 0:02:17]} 10. Ne5 {[%clk 0:02:36]}  a6 {[%clk 0:02:07]} 11. Qf3 {[%clk 0:02:35]}  Bd6 {[%clk 0:01:44]} 12. Qh3 {[%clk 0:02:34]}  h6 {[%clk 0:01:29]} 13. g4 {[%clk 0:01:56]}  g5 {[%clk 0:01:05]} 14. Qxh6 {[%clk 0:01:01]}  gxf4 {[%clk 0:01:04]} 15. g5 {[%clk 0:01:02]}  Bf8 {[%clk 0:00:40]} 16. Qxf6 {[%clk 0:00:42]}  Qxf6 {[%clk 0:00:39]} 17. gxf6 {[%clk 0:00:42]}  Rd8 {[%clk 0:00:33]} 18. Kh1 {[%clk 0:00:40]}  fxe3 {[%clk 0:00:28]} 19. Rg1+ {[%clk 0:00:40]}  Kh8 {[%clk 0:00:25]} 20. Nxf7# {[%clk 0:00:41]} 1-0


[Site "https://www.chess.com"]

[Event "Titled Tuesday Blitz June 13 Early 2023"]
[White "Fieberg, Samuel"]
[Black "ogpin"]
[WhiteFideId "12901717"]
[WhiteElo "2539"]
[BlackElo "2002"]
[Result "1-0"]
[Round "1"]
[TimeControl "180+2"]
[Date "2023.06.13"]
[WhiteClock "0:02:18"]
[BlackClock "0:02:19"]
[Board "228"]

1. e4 {[%clk 0:02:58]}  e5 {[%clk 0:02:59]} 2. Nf3 {[%clk 0:02:58]}  Nc6 {[%clk 0:03:00]} 3. d4 {[%clk 0:02:58]}  exd4 {[%clk 0:03:00]} 4. Nxd4 {[%clk 0:02:59]}  Bc5 {[%clk 0:02:59]} 5. Nb3 {[%clk 0:02:59]}  Bb6 {[%clk 0:02:59]} 6. Nc3 {[%clk 0:02:57]}  Nge7 {[%clk 0:02:51]} 7. f4 {[%clk 0:02:49]}  O-O {[%clk 0:02:39]} 8. Bc4 {[%clk 0:02:48]}  Na5 {[%clk 0:02:31]} 9. Nxa5 {[%clk 0:02:46]}  Bxa5 {[%clk 0:02:32]} 10. Bd2 {[%clk 0:02:44]}  c6 {[%clk 0:02:27]} 11. O-O {[%clk 0:02:42]}  d5 {[%clk 0:02:21]} 12. exd5 {[%clk 0:02:18]}  cxd5 {[%clk 0:02:19]} 1-0


[Site "https://www.chess.com"]

[Event "Titled Tuesday Blitz June 13 Early 2023"]
[White "Semenova, Alina"]
[Black "Devaev, Alexander"]
[WhiteFideId "24113875"]
[BlackFideId "4169395"]
[WhiteElo "1833"]
[BlackElo "2172"]
[Result "1-0"]
[Round "1"]
[TimeControl "180+2"]
[Date "2023.06.13"]
[WhiteClock "0:00:01"]
[BlackClock "0:00:00"]
[Board "229"]

1. e4 {[%clk 0:02:59]}  c6 {[%clk 0:03:00]} 2. d4 {[%clk 0:02:58]}  d5 {[%clk 0:03:01]} 3. Nd2 {[%clk 0:02:58]}  dxe4 {[%clk 0:03:01]} 4. Nxe4 {[%clk 0:02:59]}  Bf5 {[%clk 0:03:01]} 5. Ng3 {[%clk 0:02:59]}  Bg6 {[%clk 0:03:01]} 6. Nf3 {[%clk 0:02:59]}  Nd7 {[%clk 0:03:01]} 7. h4 {[%clk 0:02:59]}  h6 {[%clk 0:03:02]} 8. h5 {[%clk 0:02:59]}  Bh7 {[%clk 0:03:02]} 9. Bd3 {[%clk 0:03:00]}  Bxd3 {[%clk 0:03:03]} 10. Qxd3 {[%clk 0:03:00]}  Qc7 {[%clk 0:03:04]} 11. Bd2 {[%clk 0:02:59]}  e6 {[%clk 0:03:04]} 12. O-O-O {[%clk 0:02:58]}  Ngf6 {[%clk 0:03:04]} 13. Ne4 {[%clk 0:02:55]}  O-O-O {[%clk 0:03:03]} 14. Kb1 {[%clk 0:02:52]}  c5 {[%clk 0:03:03]} 15. Nxf6 {[%clk 0:02:06]}  Nxf6 {[%clk 0:03:00]} 16. Qc4 {[%clk 0:02:06]}  Rd5 {[%clk 0:02:40]} 17. Be3 {[%clk 0:01:49]}  Ng4 {[%clk 0:02:15]} 18. dxc5 {[%clk 0:01:05]}  Nxe3 {[%clk 0:02:08]} 19. fxe3 {[%clk 0:01:06]}  Rxc5 {[%clk 0:02:04]} 20. Qa4 {[%clk 0:01:06]}  Be7 {[%clk 0:01:45]} 21. Qxa7 {[%clk 0:01:05]}  Ra5 {[%clk 0:01:42]} 22. Qd4 {[%clk 0:00:59]}  Bf6 {[%clk 0:01:43]} 23. Qe4 {[%clk 0:00:53]}  Qb6 {[%clk 0:01:32]} 24. Nd4 {[%clk 0:00:47]}  Rd8 {[%clk 0:01:32]} 25. Rd3 {[%clk 0:00:43]}  Kb8 {[%clk 0:01:18]} 26. Rhd1 {[%clk 0:00:36]}  Rc8 {[%clk 0:01:14]} 27. Nb3 {[%clk 0:00:33]}  Rxh5 {[%clk 0:01:11]} 28. Rd6 {[%clk 0:00:24]}  Qb5 {[%clk 0:00:52]} 29. a4 {[%clk 0:00:21]}  Qc4 {[%clk 0:00:43]} 30. Qxc4 {[%clk 0:00:18]}  Rxc4 {[%clk 0:00:44]} 31. a5 {[%clk 0:00:18]}  Re5 {[%clk 0:00:34]} 32. a6 {[%clk 0:00:16]}  bxa6 {[%clk 0:00:28]} 33. Rxa6 {[%clk 0:00:16]}  Rxe3 {[%clk 0:00:20]} 34. Rb6+ {[%clk 0:00:16]}  Kc7 {[%clk 0:00:18]} 35. Ra6 {[%clk 0:00:16]}  Kb7 {[%clk 0:00:16]} 36. Rad6 {[%clk 0:00:16]}  Be5 {[%clk 0:00:13]} 37. Rd7+ {[%clk 0:00:16]}  Rc7 {[%clk 0:00:14]} 38. Rxc7+ {[%clk 0:00:16]}  Kxc7 {[%clk 0:00:14]} 39. Rf1 {[%clk 0:00:16]}  f5 {[%clk 0:00:14]} 40. Nc1 {[%clk 0:00:15]}  h5 {[%clk 0:00:14]} 41. Nd3 {[%clk 0:00:15]}  Bd6 {[%clk 0:00:15]} 42. b4 {[%clk 0:00:15]}  h4 {[%clk 0:00:14]} 43. Kb2 {[%clk 0:00:14]}  g5 {[%clk 0:00:14]} 44. Kb3 {[%clk 0:00:11]}  g4 {[%clk 0:00:14]} 45. b5 {[%clk 0:00:10]}  Re2 {[%clk 0:00:14]} 46. Rh1 {[%clk 0:00:06]}  Bg3 {[%clk 0:00:10]} 47. c4 {[%clk 0:00:03]}  Rxg2 {[%clk 0:00:09]} 48. c5 {[%clk 0:00:03]}  h3 {[%clk 0:00:09]} 49. Nb4 {[%clk 0:00:03]}  Rd2 {[%clk 0:00:07]} 50. b6+ {[%clk 0:00:02]}  Kb7 {[%clk 0:00:07]} 51. Kc4 {[%clk 0:00:02]}  Bf2 {[%clk 0:00:06]} 52. Kb5 {[%clk 0:00:01]}  Rb2 {[%clk 0:00:03]} 53. c6+ {[%clk 0:00:02]}  Kb8 {[%clk 0:00:04]} 54. Rd1 {[%clk 0:00:02]}  Bxb6 {[%clk 0:00:00]} 55. Rd7 {[%clk 0:00:01]} 1-0


[Site "https://www.chess.com"]

[Event "Titled Tuesday Blitz June 13 Early 2023"]
[White "Manukian, Artak"]
[Black "Skiadopoulos, Nikolaos"]
[WhiteFideId "13301373"]
[BlackFideId "4200772"]
[WhiteElo "2130"]
[BlackElo "2022"]
[Result "1-0"]
[Round "1"]
[TimeControl "180+2"]
[Date "2023.06.13"]
[WhiteClock "0:00:35"]
[BlackClock "0:00:32"]
[Board "230"]

1. e4 {[%clk 0:03:00]}  c5 {[%clk 0:02:59]} 2. Nf3 {[%clk 0:03:00]}  Nc6 {[%clk 0:02:58]} 3. c3 {[%clk 0:03:00]}  Nf6 {[%clk 0:02:57]} 4. e5 {[%clk 0:03:00]}  Nd5 {[%clk 0:02:57]} 5. d4 {[%clk 0:03:01]}  cxd4 {[%clk 0:02:56]} 6. cxd4 {[%clk 0:03:02]}  g6 {[%clk 0:02:56]} 7. Nc3 {[%clk 0:03:02]}  Nxc3 {[%clk 0:02:56]} 8. bxc3 {[%clk 0:03:03]}  Bg7 {[%clk 0:02:56]} 9. h4 {[%clk 0:03:03]}  h5 {[%clk 0:02:55]} 10. Bd3 {[%clk 0:03:00]}  d6 {[%clk 0:02:52]} 11. exd6 {[%clk 0:02:58]}  Qxd6 {[%clk 0:02:51]} 12. O-O {[%clk 0:02:58]}  Bg4 {[%clk 0:02:49]} 13. a4 {[%clk 0:02:57]}  O-O {[%clk 0:02:47]} 14. Ba3 {[%clk 0:02:54]}  Qf6 {[%clk 0:02:44]} 15. Be4 {[%clk 0:02:48]}  Rac8 {[%clk 0:02:37]} 16. Qb1 {[%clk 0:02:17]}  Bxf3 {[%clk 0:02:33]} 17. Bxf3 {[%clk 0:02:15]}  b6 {[%clk 0:02:29]} 18. Qe4 {[%clk 0:02:09]}  Rfe8 {[%clk 0:02:26]} 19. Rfe1 {[%clk 0:02:03]}  Na5 {[%clk 0:02:23]} 20. Bxe7 {[%clk 0:01:58]}  Rxe7 {[%clk 0:02:08]} 21. Qxe7 {[%clk 0:01:56]}  Qxe7 {[%clk 0:02:08]} 22. Rxe7 {[%clk 0:01:57]}  Rxc3 {[%clk 0:02:08]} 23. Rd1 {[%clk 0:01:51]}  a6 {[%clk 0:02:05]} 24. Bd5 {[%clk 0:01:45]}  Nc6 {[%clk 0:01:29]} 25. Rxf7 {[%clk 0:01:33]}  Kh8 {[%clk 0:01:28]} 26. Rc7 {[%clk 0:01:31]}  Nxd4 {[%clk 0:01:27]} 27. Rxc3 {[%clk 0:01:26]}  Ne2+ {[%clk 0:01:27]} 28. Kf1 {[%clk 0:01:26]}  Nxc3 {[%clk 0:01:25]} 29. Rd3 {[%clk 0:01:22]}  Nxa4 {[%clk 0:01:25]} 30. Be4 {[%clk 0:01:21]}  Nc5 {[%clk 0:01:17]} 31. Rd8+ {[%clk 0:01:19]}  Kh7 {[%clk 0:01:17]} 32. Bc2 {[%clk 0:01:19]}  Bf6 {[%clk 0:01:11]} 33. Rd6 {[%clk 0:01:18]}  Bxh4 {[%clk 0:01:10]} 34. Rxg6 {[%clk 0:01:13]}  Kh8 {[%clk 0:01:05]} 35. Rxb6 {[%clk 0:01:13]}  Be7 {[%clk 0:00:59]} 36. Rh6+ {[%clk 0:01:12]}  Kg7 {[%clk 0:00:58]} 37. Rxh5 {[%clk 0:01:12]}  a5 {[%clk 0:00:57]} 38. Ke2 {[%clk 0:01:01]}  a4 {[%clk 0:00:57]} 39. Rh3 {[%clk 0:00:48]}  Kf6 {[%clk 0:00:54]} 40. Kd1 {[%clk 0:00:46]}  Ne6 {[%clk 0:00:47]} 41. Bxa4 {[%clk 0:00:44]}  Nd4 {[%clk 0:00:42]} 42. Rd3 {[%clk 0:00:41]}  Ke5 {[%clk 0:00:42]} 43. g3 {[%clk 0:00:35]}  Ke4 {[%clk 0:00:32]} 44. Re3+ {[%clk 0:00:35]} 1-0


[Site "https://www.chess.com"]

[Event "Titled Tuesday Blitz June 13 Early 2023"]
[White "Sanchez, Robert"]
[Black "Chos, Alexey"]
[WhiteFideId "2034360"]
[BlackFideId "14117762"]
[WhiteElo "1905"]
[BlackElo "2234"]
[Result "0-1"]
[Round "1"]
[TimeControl "180+2"]
[Date "2023.06.13"]
[WhiteClock "0:00:08"]
[BlackClock "0:00:58"]
[Board "231"]

1. Nf3 {[%clk 0:03:00]}  g6 {[%clk 0:02:46]} 2. e4 {[%clk 0:02:56]}  Bg7 {[%clk 0:02:45]} 3. Bc4 {[%clk 0:02:55]}  d6 {[%clk 0:02:43]} 4. Nc3 {[%clk 0:02:55]}  Nf6 {[%clk 0:02:42]} 5. d3 {[%clk 0:02:49]}  O-O {[%clk 0:02:41]} 6. h3 {[%clk 0:02:49]}  c6 {[%clk 0:02:41]} 7. a4 {[%clk 0:02:48]}  d5 {[%clk 0:02:41]} 8. exd5 {[%clk 0:02:47]}  cxd5 {[%clk 0:02:42]} 9. Bb3 {[%clk 0:02:47]}  Nc6 {[%clk 0:02:42]} 10. O-O {[%clk 0:02:47]}  e5 {[%clk 0:02:42]} 11. Bg5 {[%clk 0:02:46]}  Be6 {[%clk 0:02:40]} 12. Re1 {[%clk 0:02:46]}  Qc7 {[%clk 0:02:38]} 13. Bxf6 {[%clk 0:02:42]}  Bxf6 {[%clk 0:02:39]} 14. Nxd5 {[%clk 0:02:41]}  Bxd5 {[%clk 0:02:37]} 15. Bxd5 {[%clk 0:02:42]}  Nb4 {[%clk 0:02:37]} 16. Bb3 {[%clk 0:02:41]}  Rad8 {[%clk 0:02:36]} 17. Qe2 {[%clk 0:02:39]}  Rfe8 {[%clk 0:02:34]} 18. Qe4 {[%clk 0:02:18]}  a5 {[%clk 0:02:29]} 19. Rac1 {[%clk 0:02:10]}  Kg7 {[%clk 0:02:27]} 20. h4 {[%clk 0:02:07]}  h6 {[%clk 0:02:25]} 21. h5 {[%clk 0:02:06]}  g5 {[%clk 0:02:24]} 22. Qf5 {[%clk 0:01:38]}  Qc8 {[%clk 0:02:12]} 23. Qe4 {[%clk 0:01:29]}  g4 {[%clk 0:02:09]} 24. Nd2 {[%clk 0:01:23]}  Rd4 {[%clk 0:02:08]} 25. Qe2 {[%clk 0:01:23]}  g3 {[%clk 0:02:07]} 26. Ne4 {[%clk 0:01:22]}  Bh4 {[%clk 0:01:45]} 27. fxg3 {[%clk 0:01:20]}  Be7 {[%clk 0:01:43]} 28. c3 {[%clk 0:01:16]}  Nxd3 {[%clk 0:01:42]} 29. cxd4 {[%clk 0:00:48]}  Nxc1 {[%clk 0:01:42]} 30. Qf3 {[%clk 0:00:44]}  Nxb3 {[%clk 0:01:40]} 31. Qxb3 {[%clk 0:00:45]}  exd4 {[%clk 0:01:38]} 32. Rf1 {[%clk 0:00:44]}  Qe6 {[%clk 0:01:35]} 33. Qd3 {[%clk 0:00:42]}  Rd8 {[%clk 0:01:32]} 34. g4 {[%clk 0:00:42]}  Qxg4 {[%clk 0:01:27]} 35. Ng3 {[%clk 0:00:42]}  Bg5 {[%clk 0:01:22]} 36. Nf5+ {[%clk 0:00:32]}  Kg8 {[%clk 0:01:21]} 37. Rf3 {[%clk 0:00:32]}  Qxh5 {[%clk 0:01:18]} 38. Rh3 {[%clk 0:00:24]}  Qg6 {[%clk 0:01:15]} 39. Rg3 {[%clk 0:00:24]}  Kh8 {[%clk 0:01:10]} 40. Qe4 {[%clk 0:00:19]}  Qc6 {[%clk 0:01:03]} 41. Qe5+ {[%clk 0:00:16]}  Qf6 {[%clk 0:01:03]} 42. Qe4 {[%clk 0:00:11]}  Qe6 {[%clk 0:00:58]} 43. Qg4 {[%clk 0:00:08]} 0-1


[Site "https://www.chess.com"]

[Event "Titled Tuesday Blitz June 13 Early 2023"]
[White "Dubov, Daniil"]
[Black "Koshulyan, Egor A."]
[WhiteFideId "24126055"]
[BlackFideId "24237000"]
[WhiteElo "2793"]
[BlackElo "2216"]
[Result "1-0"]
[Round "2"]
[TimeControl "180+2"]
[Date "2023.06.13"]
[WhiteClock "0:00:06"]
[BlackClock "0:00:04"]
[Board "7"]

1. d4 {[%clk 0:03:00]}  Nf6 {[%clk 0:02:59]} 2. Nf3 {[%clk 0:03:00]}  d5 {[%clk 0:02:59]} 3. Bg5 {[%clk 0:03:00]}  Ne4 {[%clk 0:02:55]} 4. Bh4 {[%clk 0:03:00]}  c5 {[%clk 0:02:55]} 5. e3 {[%clk 0:02:59]}  Nc6 {[%clk 0:02:55]} 6. Nbd2 {[%clk 0:02:58]}  Bg4 {[%clk 0:02:50]} 7. Be2 {[%clk 0:02:42]}  Qb6 {[%clk 0:02:48]} 8. O-O {[%clk 0:02:34]}  e6 {[%clk 0:02:42]} 9. Nxe4 {[%clk 0:02:29]}  dxe4 {[%clk 0:02:42]} 10. Nd2 {[%clk 0:02:25]}  Bxe2 {[%clk 0:02:42]} 11. Qxe2 {[%clk 0:02:26]}  cxd4 {[%clk 0:02:42]} 12. Nxe4 {[%clk 0:02:24]}  dxe3 {[%clk 0:02:25]} 13. Rad1 {[%clk 0:02:22]}  Nd4 {[%clk 0:01:49]} 14. Qxe3 {[%clk 0:02:02]}  Nf5 {[%clk 0:01:48]} 15. Qd3 {[%clk 0:02:02]}  Qc7 {[%clk 0:01:47]} 16. Bg3 {[%clk 0:01:31]}  Nxg3 {[%clk 0:01:47]} 17. hxg3 {[%clk 0:01:13]}  Qc6 {[%clk 0:01:41]} 18. Qd4 {[%clk 0:01:09]}  f6 {[%clk 0:01:14]} 19. Rfe1 {[%clk 0:01:01]}  e5 {[%clk 0:01:11]} 20. Qd3 {[%clk 0:00:57]}  Be7 {[%clk 0:01:10]} 21. Qb3 {[%clk 0:00:45]}  Rd8 {[%clk 0:00:59]} 22. Rxd8+ {[%clk 0:00:40]}  Bxd8 {[%clk 0:00:59]} 23. g4 {[%clk 0:00:35]}  Qb6 {[%clk 0:00:42]} 24. Qa4+ {[%clk 0:00:28]}  Qc6 {[%clk 0:00:42]} 25. Qxa7 {[%clk 0:00:25]}  O-O {[%clk 0:00:41]} 26. Qc5 {[%clk 0:00:22]}  Qa4 {[%clk 0:00:41]} 27. Qd5+ {[%clk 0:00:19]}  Kh8 {[%clk 0:00:41]} 28. Nd6 {[%clk 0:00:18]}  Qd7 {[%clk 0:00:22]} 29. Rd1 {[%clk 0:00:18]}  h6 {[%clk 0:00:15]} 30. Nxb7 {[%clk 0:00:15]}  Qxd5 {[%clk 0:00:13]} 31. Rxd5 {[%clk 0:00:16]}  Bb6 {[%clk 0:00:14]} 32. Nd6 {[%clk 0:00:12]}  Kg8 {[%clk 0:00:11]} 33. Kf1 {[%clk 0:00:11]}  Rd8 {[%clk 0:00:10]} 34. Ke2 {[%clk 0:00:07]}  Bc7 {[%clk 0:00:09]} 35. Nf5 {[%clk 0:00:07]}  Rb8 {[%clk 0:00:09]} 36. Rd7 {[%clk 0:00:07]}  Bb6 {[%clk 0:00:06]} 37. Rxg7+ {[%clk 0:00:07]}  Kh8 {[%clk 0:00:07]} 38. Rg6 {[%clk 0:00:07]}  Bc5 {[%clk 0:00:07]} 39. Rxh6+ {[%clk 0:00:07]}  Kg8 {[%clk 0:00:08]} 40. b3 {[%clk 0:00:07]}  Kf7 {[%clk 0:00:07]} 41. Rh7+ {[%clk 0:00:08]}  Ke6 {[%clk 0:00:08]} 42. Rc7 {[%clk 0:00:07]}  Bb6 {[%clk 0:00:08]} 43. Rc6+ {[%clk 0:00:07]}  Kf7 {[%clk 0:00:09]} 44. a4 {[%clk 0:00:06]}  Ba5 {[%clk 0:00:09]} 45. f3 {[%clk 0:00:06]}  Kg6 {[%clk 0:00:09]} 46. Ne7+ {[%clk 0:00:06]}  Kg5 {[%clk 0:00:09]} 47. Nd5 {[%clk 0:00:07]}  Rd8 {[%clk 0:00:08]} 48. c4 {[%clk 0:00:03]}  Rb8 {[%clk 0:00:09]} 49. Rc5 {[%clk 0:00:04]}  Bd8 {[%clk 0:00:07]} 50. Rb5 {[%clk 0:00:05]}  Rc8 {[%clk 0:00:07]} 51. Kd3 {[%clk 0:00:05]}  Kh4 {[%clk 0:00:07]} 52. Ke4 {[%clk 0:00:05]}  Kg3 {[%clk 0:00:07]} 53. a5 {[%clk 0:00:06]}  Rb8 {[%clk 0:00:04]} 54. Rxb8 {[%clk 0:00:06]} 1-0


[Site "https://www.chess.com"]